[Event "GrandPrix_29.05"]
[Site "Chess.com"]
[Date "2020.05.29"]
[Round "5"]
[White "IljaJoke"]
[Black "Salnaa"]
[Result "0-1"]
[WhiteElo "2238"]
[BlackElo "2160"]
[TimeControl "600+2"]
[EndTime "11:31:02 PDT"]
[Termination "Salnaa won by resignation"]

1. d4 {[%clk 0:10:01.9]} 1... d5 {[%clk 0:10:00.8]} 2. c4 {[%clk 0:10:02.9]}
2... c6 {[%clk 0:10:02]} 3. cxd5 {[%clk 0:10:04.3]} 3... cxd5 {[%clk 0:10:03.9]}
4. Bf4 {[%clk 0:10:04.9]} 4... Nc6 {[%clk 0:10:03]} 5. e3 {[%clk 0:10:06.2]}
5... Nf6 {[%clk 0:09:57.6]} 6. Bb5 {[%clk 0:09:55.2]} 6... Qb6 {[%clk
0:09:14.4]} 7. Nc3 {[%clk 0:09:47.6]} 7... Bd7 {[%clk 0:08:28.9]} 8. Nf3 {[%clk
0:09:31]} 8... a6 {[%clk 0:08:17.7]} 9. Bd3 {[%clk 0:08:43.1]} 9... Qxb2 {[%clk
0:07:20.4]} 10. Rc1 {[%clk 0:08:40.6]} 10... Nb4 {[%clk 0:07:20.7]} 11. Bb1
{[%clk 0:07:57.6]} 11... Rc8 {[%clk 0:07:02.7]} 12. Qd2 {[%clk 0:07:08.6]} 12...
Qxd2+ {[%clk 0:06:24]} 13. Kxd2 {[%clk 0:07:10.5]} 13... e6 {[%clk 0:06:22.1]}
14. Ne5 {[%clk 0:07:00.2]} 14... Nh5 {[%clk 0:05:32.8]} 15. Nxd7 {[%clk
0:06:49.8]} 15... Kxd7 {[%clk 0:05:32.5]} 16. Na4 {[%clk 0:06:47.5]} 16... Rxc1
{[%clk 0:05:22]} 17. Rxc1 {[%clk 0:06:49.4]} 17... Nxf4 {[%clk 0:04:30.2]} 18.
Nb6+ {[%clk 0:06:49.7]} 18... Kd6 {[%clk 0:04:26.1]} 19. Nc8+ {[%clk 0:06:37.8]}
19... Kd7 {[%clk 0:04:25.5]} 20. Nb6+ {[%clk 0:06:39.2]} 20... Ke7 {[%clk
0:03:58.1]} 21. exf4 {[%clk 0:06:37]} 21... Nc6 {[%clk 0:03:58.1]} 22. Bd3
{[%clk 0:06:30.1]} 22... Kd6 {[%clk 0:03:56.8]} 23. Nc8+ {[%clk 0:06:16.7]}
23... Kd7 {[%clk 0:03:45.5]} 24. Nb6+ {[%clk 0:06:15.8]} 24... Kc7 {[%clk
0:03:44.5]} 25. Na4 {[%clk 0:06:16.1]} 25... Bb4+ {[%clk 0:03:42.7]} 26. Ke3
{[%clk 0:06:16.6]} 26... Rc8 {[%clk 0:03:26.8]} 27. g4 {[%clk 0:06:11.8]} 27...
b5 {[%clk 0:03:25.2]} 28. Nc5 {[%clk 0:06:11.1]} 28... Bxc5 {[%clk 0:03:25.5]}
29. Rxc5 {[%clk 0:06:11.3]} 29... Kb7 {[%clk 0:03:14.7]} 30. f5 {[%clk
0:06:08.5]} 30... h6 {[%clk 0:03:07.9]} 31. fxe6 {[%clk 0:06:07.6]} 31... fxe6
{[%clk 0:03:09.8]} 32. Bg6 {[%clk 0:05:56.3]} 32... Nd8 {[%clk 0:03:04.2]} 33.
f4 {[%clk 0:05:34.6]} 33... Rxc5 {[%clk 0:02:51.7]} 34. dxc5 {[%clk 0:05:36.5]}
34... Kc7 {[%clk 0:02:53.1]} 35. Be8 {[%clk 0:05:26.9]} 35... Nc6 {[%clk
0:02:48.5]} 36. Bf7 {[%clk 0:05:06.5]} 36... Kd7 {[%clk 0:02:47]} 37. f5 {[%clk
0:05:05.1]} 37... exf5 {[%clk 0:02:48.1]} 38. gxf5 {[%clk 0:05:05.7]} 38... Nb4
{[%clk 0:02:20.9]} 39. Kd4 {[%clk 0:05:01.8]} 39... Nxa2 {[%clk 0:02:12.4]} 40.
Be6+ {[%clk 0:04:18.2]} 40... Kc7 {[%clk 0:02:08.8]} 41. Bxd5 {[%clk 0:04:16.3]}
41... Nb4 {[%clk 0:02:09.1]} 42. Be4 {[%clk 0:04:13]} 42... a5 {[%clk
0:01:52.9]} 43. Kc3 {[%clk 0:04:13.3]} 43... Na6 {[%clk 0:01:34.2]} 44. Kd4
{[%clk 0:04:13.6]} 44... Nb8 {[%clk 0:01:35]} 45. Bd3 {[%clk 0:04:09.6]} 45...
Nc6+ {[%clk 0:01:30.4]} 46. Kc3 {[%clk 0:04:10.6]} 46... Na7 {[%clk 0:01:20.4]}
47. Be4 {[%clk 0:04:09]} 47... Kd7 {[%clk 0:01:19.1]} 48. h4 {[%clk 0:04:01.2]}
48... Ke7 {[%clk 0:01:17.4]} 49. Kd4 {[%clk 0:03:58]} 49... Kd7 {[%clk
0:01:09.3]} 50. Kc3 {[%clk 0:03:57.8]} 50... Kc7 {[%clk 0:01:00.6]} 51. Bg2
{[%clk 0:03:32.9]} 51... Nc6 {[%clk 0:00:56.2]} 52. Bf1 {[%clk 0:03:33.2]} 52...
b4+ {[%clk 0:00:54.9]} 53. Kb3 {[%clk 0:03:31.3]} 53... Nd4+ {[%clk 0:00:53.6]}
54. Ka4 {[%clk 0:03:32.5]} 54... Kc6 {[%clk 0:00:54.7]} 55. Kxa5 {[%clk
0:03:28.7]} 55... Kxc5 {[%clk 0:00:55.7]} 56. Bd3 {[%clk 0:03:30]} 56... Nf3
{[%clk 0:00:52.9]} 57. h5 {[%clk 0:03:24.3]} 57... Ne5 {[%clk 0:00:53.8]} 58.
Bb1 {[%clk 0:02:50.5]} 58... b3 {[%clk 0:00:35.5]} 59. Ka4 {[%clk 0:02:51.3]}
59... Kc4 {[%clk 0:00:36.4]} 60. Ka3 {[%clk 0:02:52.6]} 60... Kc3 {[%clk
0:00:37.6]} 61. Be4 {[%clk 0:02:51.7]} 61... Nc4+ {[%clk 0:00:38.6]} 62. Ka4
{[%clk 0:02:52.9]} 62... Nd2 {[%clk 0:00:38.1]} 63. f6 {[%clk 0:02:45.3]} 63...
gxf6 {[%clk 0:00:36.8]} 64. Bf5 {[%clk 0:02:46.8]} 64... b2 {[%clk 0:00:36.3]}
65. Kb5 {[%clk 0:02:47.9]} 65... Kd4 {[%clk 0:00:37.6]} 0-1

[Event "GrandPrix_29.05"]
[Site "Chess.com"]
[Date "2020.05.29"]
[Round "5"]
[White "Zubrrr"]
[Black "temus_galaktionov"]
[Result "0-1"]
[WhiteElo "2574"]
[BlackElo "2553"]
[TimeControl "600+2"]
[EndTime "11:31:04 PDT"]
[Termination "temus_galaktionov won by resignation"]

1. c4 {[%clk 0:10:01.9]} 1... c6 {[%clk 0:10:01.9]} 2. g3 {[%clk 0:10:00.9]}
2... g6 {[%clk 0:10:00.2]} 3. Bg2 {[%clk 0:10:02]} 3... Bg7 {[%clk 0:10:00.1]}
4. Nf3 {[%clk 0:10:03.6]} 4... d6 {[%clk 0:09:58.9]} 5. O-O {[%clk 0:10:04.4]}
5... Nd7 {[%clk 0:09:55.1]} 6. Nc3 {[%clk 0:10:01.8]} 6... Ngf6 {[%clk
0:09:51.7]} 7. d4 {[%clk 0:10:02.4]} 7... O-O {[%clk 0:09:51.5]} 8. e4 {[%clk
0:10:03.2]} 8... e5 {[%clk 0:09:52]} 9. h3 {[%clk 0:09:25]} 9... Re8 {[%clk
0:09:49.8]} 10. Re1 {[%clk 0:09:24.9]} 10... Qc7 {[%clk 0:09:36.7]} 11. Be3
{[%clk 0:09:23.6]} 11... a6 {[%clk 0:09:20.4]} 12. Rc1 {[%clk 0:09:15.2]} 12...
b6 {[%clk 0:09:14.3]} 13. c5 {[%clk 0:08:56]} 13... dxc5 {[%clk 0:08:53.2]} 14.
dxe5 {[%clk 0:08:41.9]} 14... Nxe5 {[%clk 0:08:55.1]} 15. Nxe5 {[%clk
0:08:42.7]} 15... Qxe5 {[%clk 0:08:43.2]} 16. f4 {[%clk 0:08:33]} 16... Qc7
{[%clk 0:08:42.4]} 17. e5 {[%clk 0:08:33.2]} 17... Nh5 {[%clk 0:08:27.2]} 18. g4
{[%clk 0:08:21.9]} 18... Nxf4 {[%clk 0:08:08.7]} 19. Bxf4 {[%clk 0:08:22.9]}
19... Bxe5 {[%clk 0:08:10.2]} 20. Rxe5 {[%clk 0:07:54.7]} 20... Rxe5 {[%clk
0:08:12.1]} 21. Bxe5 {[%clk 0:06:42.2]} 21... Qxe5 {[%clk 0:08:14]} 22. Qd8+
{[%clk 0:06:31]} 22... Kg7 {[%clk 0:08:13.1]} 23. Rf1 {[%clk 0:06:30.3]} 23...
Qd4+ {[%clk 0:07:26.4]} 24. Qxd4+ {[%clk 0:06:30.2]} 24... cxd4 {[%clk
0:07:28.3]} 25. Ne2 {[%clk 0:06:07.8]} 25... Ra7 {[%clk 0:06:41.5]} 26. Bxc6
{[%clk 0:04:21]} 26... d3 {[%clk 0:06:08.3]} 27. Nd4 {[%clk 0:04:18.7]} 27... h5
{[%clk 0:06:06.6]} 28. gxh5 {[%clk 0:03:37.7]} 28... Bxh3 {[%clk 0:06:08.5]} 29.
Rd1 {[%clk 0:03:34.3]} 29... Bg4 {[%clk 0:06:03.8]} 30. Rxd3 {[%clk 0:03:34.1]}
30... Bxh5 {[%clk 0:06:05.3]} 31. a4 {[%clk 0:03:29.1]} 31... f5 {[%clk
0:06:00.8]} 32. Rb3 {[%clk 0:03:26.7]} 32... b5 {[%clk 0:05:57.2]} 33. axb5
{[%clk 0:03:26.7]} 33... axb5 {[%clk 0:05:59.1]} 34. Rxb5 {[%clk 0:03:27.8]}
34... Kf6 {[%clk 0:05:50.1]} 35. Kf2 {[%clk 0:03:18.6]} 35... Bg4 {[%clk
0:05:47.2]} 36. Bf3 {[%clk 0:03:15]} 36... Ra4 {[%clk 0:05:31.8]} 37. Rb6+
{[%clk 0:02:32.3]} 37... Ke5 {[%clk 0:05:27.5]} 38. Bxg4 {[%clk 0:01:09.2]}
38... Rxd4 {[%clk 0:05:20.7]} 39. Be2 {[%clk 0:01:02.4]} 39... g5 {[%clk
0:05:18.4]} 40. b4 {[%clk 0:00:51.2]} 40... g4 {[%clk 0:05:14.7]} 41. b5 {[%clk
0:00:51.6]} 41... Rb4 {[%clk 0:05:11.1]} 42. Rg6 {[%clk 0:00:29.2]} 42... Rb2
{[%clk 0:05:09.1]} 43. Ke1 {[%clk 0:00:21]} 43... Ke4 {[%clk 0:05:05.8]} 44. b6
{[%clk 0:00:07.6]} 44... Ke3 {[%clk 0:04:42.1]} 45. Re6+ {[%clk 0:00:07.7]}
45... Kf4 {[%clk 0:04:41.5]} 46. Ba6 {[%clk 0:00:04.7]} 46... g3 {[%clk
0:04:37.9]} 47. Bb7 {[%clk 0:00:03.8]} 47... g2 {[%clk 0:04:34.2]} 48. Bxg2
{[%clk 0:00:04.4]} 48... Rxg2 {[%clk 0:04:36.1]} 49. b7 {[%clk 0:00:04.3]} 49...
Rb2 {[%clk 0:04:35.9]} 50. Re7 {[%clk 0:00:05.7]} 50... Kf3 {[%clk 0:04:35.3]}
51. Rf7 {[%clk 0:00:05.4]} 51... f4 {[%clk 0:04:36.2]} 52. Kd1 {[%clk
0:00:06.7]} 52... Kg3 {[%clk 0:04:22.3]} 53. Kc1 {[%clk 0:00:06.6]} 53... Rb5
{[%clk 0:04:19.3]} 54. Kd2 {[%clk 0:00:07.3]} 54... f3 {[%clk 0:04:18.3]} 55.
Rg7+ {[%clk 0:00:03.7]} 55... Kf2 {[%clk 0:04:16.1]} 56. Rf7 {[%clk 0:00:04.9]}
56... Kg2 {[%clk 0:04:14.7]} 57. Rg7+ {[%clk 0:00:04.4]} 57... Kf1 {[%clk
0:04:11.4]} 58. Rf7 {[%clk 0:00:05.5]} 58... f2 {[%clk 0:04:09.7]} 59. Kd1
{[%clk 0:00:03.5]} 59... Rd5+ {[%clk 0:03:50.4]} 60. Kc2 {[%clk 0:00:04.7]}
60... Rd8 {[%clk 0:03:52.3]} 61. Re7 {[%clk 0:00:05.3]} 61... Rg8 {[%clk
0:03:44.6]} 62. Rc7 {[%clk 0:00:05.7]} 62... Kg1 {[%clk 0:03:12.7]} 63. Rg7+
{[%clk 0:00:04]} 63... Rxg7 {[%clk 0:03:11.7]} 64. b8=Q {[%clk 0:00:05.9]} 64...
f1=Q {[%clk 0:03:11.6]} 0-1

[Event "GrandPrix_29.05"]
[Site "Chess.com"]
[Date "2020.05.29"]
[Round "5"]
[White "OK97"]
[Black "sergiochess83"]
[Result "1-0"]
[WhiteElo "2620"]
[BlackElo "2529"]
[TimeControl "600+2"]
[EndTime "11:31:06 PDT"]
[Termination "OK97 won on time"]

1. e4 {[%clk 0:10:01.9]} 1... c6 {[%clk 0:09:57.3]} 2. d4 {[%clk 0:10:02]} 2...
d5 {[%clk 0:09:57.4]} 3. e5 {[%clk 0:10:03.2]} 3... Bf5 {[%clk 0:09:57.8]} 4. h4
{[%clk 0:10:04.1]} 4... h5 {[%clk 0:09:52.8]} 5. c4 {[%clk 0:10:04.5]} 5... e6
{[%clk 0:09:53.1]} 6. Nc3 {[%clk 0:10:04.7]} 6... dxc4 {[%clk 0:09:50.4]} 7.
Bxc4 {[%clk 0:10:04]} 7... Nd7 {[%clk 0:09:50.2]} 8. Nf3 {[%clk 0:09:34.8]} 8...
Nb6 {[%clk 0:09:24.5]} 9. Be2 {[%clk 0:08:36.6]} 9... Bg4 {[%clk 0:08:39.6]} 10.
Bg5 {[%clk 0:08:28.3]} 10... Be7 {[%clk 0:08:33.7]} 11. Ne4 {[%clk 0:08:02.2]}
11... f6 {[%clk 0:07:39.7]} 12. exf6 {[%clk 0:07:43.9]} 12... gxf6 {[%clk
0:07:39.9]} 13. Bd2 {[%clk 0:07:34]} 13... Nd5 {[%clk 0:07:40.3]} 14. Rc1 {[%clk
0:07:02.2]} 14... Nh6 {[%clk 0:07:17]} 15. Bxh6 {[%clk 0:04:59.3]} 15... Rxh6
{[%clk 0:07:15.3]} 16. g3 {[%clk 0:04:13.1]} 16... Qa5+ {[%clk 0:05:40.3]} 17.
Nfd2 {[%clk 0:04:05.8]} 17... Rg6 {[%clk 0:04:36.1]} 18. a3 {[%clk 0:02:58.4]}
18... Kf7 {[%clk 0:04:12.5]} 19. Kf1 {[%clk 0:02:29.8]} 19... Rag8 {[%clk
0:03:33.6]} 20. Bxg4 {[%clk 0:02:28.2]} 20... Rxg4 {[%clk 0:03:34.3]} 21. Qe2
{[%clk 0:02:18]} 21... Nc7 {[%clk 0:01:51.5]} 22. Qe3 {[%clk 0:01:30.6]} 22...
Qb5+ {[%clk 0:01:28.8]} 23. Kg2 {[%clk 0:01:24]} 23... Nd5 {[%clk 0:01:20.2]}
24. Qf3 {[%clk 0:01:12.3]} 24... Nf4+ {[%clk 0:01:00.2]} 25. Kh2 {[%clk
0:01:13.4]} 25... Qf5 {[%clk 0:01:01.7]} 26. Nc4 {[%clk 0:00:32.3]} 26... Kf8
{[%clk 0:00:02.5]} 27. Ne3 {[%clk 0:00:25.2]} 1-0

[Event "GrandPrix_29.05"]
[Site "Chess.com"]
[Date "2020.05.29"]
[Round "5"]
[White "Vnebo"]
[Black "FCLitras"]
[Result "1/2-1/2"]
[WhiteElo "2022"]
[BlackElo "1824"]
[TimeControl "600+2"]
[EndTime "11:31:06 PDT"]
[Termination "Game drawn by repetition"]

1. e4 {[%clk 0:10:01.9]} 1... c6 {[%clk 0:10:00.7]} 2. d4 {[%clk 0:09:57.4]}
2... d5 {[%clk 0:10:01.6]} 3. Nc3 {[%clk 0:09:58.9]} 3... dxe4 {[%clk
0:10:02.4]} 4. Nxe4 {[%clk 0:10:00.8]} 4... Bf5 {[%clk 0:10:03.3]} 5. Ng3 {[%clk
0:10:00.8]} 5... Bg6 {[%clk 0:10:04.3]} 6. Be3 {[%clk 0:10:02.3]} 6... e6 {[%clk
0:09:57.9]} 7. h4 {[%clk 0:09:55.2]} 7... h6 {[%clk 0:09:58.4]} 8. h5 {[%clk
0:09:51.4]} 8... Bh7 {[%clk 0:09:59.1]} 9. Bd3 {[%clk 0:09:51.2]} 9... Bxd3
{[%clk 0:09:59.2]} 10. Qxd3 {[%clk 0:09:53.1]} 10... Nf6 {[%clk 0:09:59.7]} 11.
O-O-O {[%clk 0:09:52.6]} 11... Nbd7 {[%clk 0:09:59.1]} 12. f4 {[%clk 0:09:49]}
12... Bd6 {[%clk 0:09:28.3]} 13. Nf3 {[%clk 0:09:41.7]} 13... Nd5 {[%clk
0:09:28.9]} 14. Ne5 {[%clk 0:09:22.4]} 14... O-O {[%clk 0:07:15.1]} 15. Ne4
{[%clk 0:09:09.1]} 15... N7f6 {[%clk 0:07:08]} 16. Nxf6+ {[%clk 0:07:51.4]}
16... Nxf6 {[%clk 0:07:01.4]} 17. Rhg1 {[%clk 0:07:02.2]} 17... Qa5 {[%clk
0:06:06.3]} 18. Nc4 {[%clk 0:06:40.6]} 18... Qd5 {[%clk 0:06:04.1]} 19. Nxd6
{[%clk 0:06:22.2]} 19... Qxd6 {[%clk 0:06:06]} 20. g4 {[%clk 0:06:22.8]} 20...
Nd5 {[%clk 0:05:51.5]} 21. Bd2 {[%clk 0:04:42]} 21... Nxf4 {[%clk 0:05:46.4]}
22. Qf3 {[%clk 0:04:36.7]} 22... g5 {[%clk 0:05:26.7]} 23. hxg6 {[%clk
0:04:23.4]} 23... fxg6 {[%clk 0:05:27.7]} 24. Rdf1 {[%clk 0:02:30.8]} 24... g5
{[%clk 0:05:08.2]} 25. Qe4 {[%clk 0:02:06.5]} 25... Kg7 {[%clk 0:04:44.1]} 26.
Re1 {[%clk 0:01:25.6]} 26... Rae8 {[%clk 0:04:28.1]} 27. c4 {[%clk 0:01:13.5]}
27... Ng6 {[%clk 0:03:21.9]} 28. Kb1 {[%clk 0:01:13.2]} 28... b5 {[%clk
0:03:15.6]} 29. cxb5 {[%clk 0:00:42.9]} 29... cxb5 {[%clk 0:03:15.9]} 30. Qb7+
{[%clk 0:00:43.5]} 30... Re7 {[%clk 0:02:58.2]} 31. Qxb5 {[%clk 0:00:43.3]}
31... Rb8 {[%clk 0:02:56.7]} 32. Qa5 {[%clk 0:00:31.7]} 32... Reb7 {[%clk
0:02:47.8]} 33. Bc3 {[%clk 0:00:31.3]} 33... Qd5 {[%clk 0:02:48.6]} 34. Qxd5
{[%clk 0:00:21.8]} 34... exd5 {[%clk 0:02:50.5]} 35. Kc2 {[%clk 0:00:15.8]}
35... Rf7 {[%clk 0:02:43]} 36. Rgf1 {[%clk 0:00:14.4]} 36... Rbf8 {[%clk
0:02:40.7]} 37. Rxf7+ {[%clk 0:00:14.9]} 37... Rxf7 {[%clk 0:02:42.6]} 38. Re6
{[%clk 0:00:15.2]} 38... Rf2+ {[%clk 0:02:41.1]} 39. Bd2 {[%clk 0:00:15]} 39...
Nh4 {[%clk 0:02:16.4]} 40. Kd3 {[%clk 0:00:07.7]} 40... Rg2 {[%clk 0:02:04.1]}
41. Re7+ {[%clk 0:00:06.8]} 41... Kf6 {[%clk 0:02:04.6]} 42. Rxa7 {[%clk
0:00:08.5]} 42... Rxg4 {[%clk 0:02:03.8]} 43. a4 {[%clk 0:00:08.6]} 43... Nf3
{[%clk 0:02:04.8]} 44. Be3 {[%clk 0:00:08.2]} 44... Ne1+ {[%clk 0:02:02.3]} 45.
Kd2 {[%clk 0:00:07.2]} 45... Nf3+ {[%clk 0:02:01.3]} 46. Kd3 {[%clk 0:00:06.2]}
46... Ne1+ {[%clk 0:01:56.3]} 47. Kd2 {[%clk 0:00:07.1]} 47... Nf3+ {[%clk
0:01:50.3]} 48. Kd3 {[%clk 0:00:07.8]} 1/2-1/2

[Event "GrandPrix_29.05"]
[Site "Chess.com"]
[Date "2020.05.29"]
[Round "5"]
[White "Valeriy_Neverov"]
[Black "rasmussvane"]
[Result "1/2-1/2"]
[WhiteElo "2489"]
[BlackElo "2411"]
[TimeControl "600+2"]
[EndTime "11:31:09 PDT"]
[Termination "Game drawn by agreement"]

1. d4 {[%clk 0:09:50.3]} 1... d5 {[%clk 0:09:53.1]} 2. c4 {[%clk 0:09:50.5]}
2... e6 {[%clk 0:09:54.1]} 3. Nc3 {[%clk 0:09:49]} 3... a6 {[%clk 0:09:55.6]} 4.
cxd5 {[%clk 0:09:32.1]} 4... exd5 {[%clk 0:09:57.5]} 5. Bf4 {[%clk 0:09:32.9]}
5... Nf6 {[%clk 0:09:58.9]} 6. e3 {[%clk 0:09:33.7]} 6... Bd6 {[%clk 0:10:00.4]}
7. Bxd6 {[%clk 0:09:23.4]} 7... Qxd6 {[%clk 0:10:02.3]} 8. Bd3 {[%clk
0:09:19.5]} 8... O-O {[%clk 0:10:02.2]} 9. h3 {[%clk 0:09:13.2]} 9... Re8 {[%clk
0:09:07.3]} 10. Nf3 {[%clk 0:09:12.2]} 10... Be6 {[%clk 0:09:04.3]} 11. O-O
{[%clk 0:09:11.3]} 11... Nbd7 {[%clk 0:09:04.3]} 12. Rc1 {[%clk 0:09:06.1]}
12... c6 {[%clk 0:09:04.4]} 13. a3 {[%clk 0:08:59.9]} 13... Qe7 {[%clk
0:09:01.6]} 14. Na4 {[%clk 0:08:20.6]} 14... Ne4 {[%clk 0:08:38.4]} 15. b4
{[%clk 0:08:14.9]} 15... Nd6 {[%clk 0:08:22.5]} 16. Nc5 {[%clk 0:08:05.2]} 16...
Nb6 {[%clk 0:07:45.5]} 17. a4 {[%clk 0:07:34.6]} 17... Bf5 {[%clk 0:07:18.3]}
18. a5 {[%clk 0:06:50]} 18... Bxd3 {[%clk 0:07:03.5]} 19. Qxd3 {[%clk
0:06:28.9]} 19... Nbc4 {[%clk 0:07:03.7]} 20. Nd2 {[%clk 0:06:11.1]} 20... Nxd2
{[%clk 0:06:58.5]} 21. Qxd2 {[%clk 0:06:10.4]} 21... Qg5 {[%clk 0:06:42.1]} 22.
Qd3 {[%clk 0:04:57.4]} 22... Re7 {[%clk 0:06:40.1]} 23. Rce1 {[%clk 0:04:48.3]}
23... Rae8 {[%clk 0:06:41.1]} 24. Re2 {[%clk 0:04:48.6]} 24... Nf5 {[%clk
0:05:44.6]} 25. Kh2 {[%clk 0:04:14.7]} 25... Nh4 {[%clk 0:05:22.6]} 26. Rg1
{[%clk 0:03:55]} 26... h5 {[%clk 0:04:24.7]} 27. Qd2 {[%clk 0:03:04.2]} 27...
Rd8 {[%clk 0:04:12.1]} 28. Qe1 {[%clk 0:02:48.2]} 28... Nf5 {[%clk 0:03:11.2]}
29. f4 {[%clk 0:02:19.1]} 29... Qg6 {[%clk 0:03:01.3]} 30. g4 {[%clk 0:02:10.3]}
30... hxg4 {[%clk 0:02:57.3]} 31. hxg4 {[%clk 0:02:05.7]} 31... Nd6 {[%clk
0:02:57.9]} 32. Qh4 {[%clk 0:01:46.7]} 32... Rde8 {[%clk 0:02:53]} 33. Rg3
{[%clk 0:01:47.4]} 33... Nc4 {[%clk 0:01:59.4]} 34. Rh3 {[%clk 0:01:33.7]} 34...
f6 {[%clk 0:01:55.9]} 35. f5 {[%clk 0:01:28.5]} 35... Qg5 {[%clk 0:01:46.8]} 36.
Qxg5 {[%clk 0:00:49.7]} 36... fxg5 {[%clk 0:01:47.6]} 37. Ne6 {[%clk 0:00:46]}
1/2-1/2

[Event "GrandPrix_29.05"]
[Site "Chess.com"]
[Date "2020.05.29"]
[Round "5"]
[White "Keks2017"]
[Black "Velis23"]
[Result "1-0"]
[WhiteElo "2274"]
[BlackElo "2163"]
[TimeControl "600+2"]
[EndTime "11:31:11 PDT"]
[Termination "Keks2017 won by resignation"]

1. g3 {[%clk 0:09:54]} 1... d5 {[%clk 0:09:51.1]} 2. Bg2 {[%clk 0:09:54.1]} 2...
Nf6 {[%clk 0:09:48.2]} 3. d3 {[%clk 0:09:54]} 3... c6 {[%clk 0:09:33.8]} 4. Nd2
{[%clk 0:09:49.1]} 4... Bf5 {[%clk 0:09:30.6]} 5. e4 {[%clk 0:09:46.8]} 5... Bg6
{[%clk 0:09:30.9]} 6. f4 {[%clk 0:09:45.5]} 6... e6 {[%clk 0:09:30]} 7. Qe2
{[%clk 0:09:45.3]} 7... Bc5 {[%clk 0:09:04.1]} 8. Ngf3 {[%clk 0:09:45.4]} 8...
dxe4 {[%clk 0:08:17.7]} 9. dxe4 {[%clk 0:09:44.5]} 9... Ng4 {[%clk 0:08:15.6]}
10. Nb3 {[%clk 0:08:49.9]} 10... Bf2+ {[%clk 0:07:37.6]} 11. Kf1 {[%clk
0:08:49.2]} 11... Bb6 {[%clk 0:07:22]} 12. Nfd4 {[%clk 0:07:39]} 12... Bxd4
{[%clk 0:06:48.6]} 13. Qxg4 {[%clk 0:07:38.1]} 13... Bb6 {[%clk 0:05:53.3]} 14.
Qe2 {[%clk 0:07:27.9]} 14... O-O {[%clk 0:05:42.8]} 15. Bf3 {[%clk 0:07:24.7]}
15... a5 {[%clk 0:05:37.2]} 16. a4 {[%clk 0:07:11.2]} 16... Nd7 {[%clk
0:05:20.2]} 17. Kg2 {[%clk 0:07:09.9]} 17... f6 {[%clk 0:05:20.7]} 18. Rd1
{[%clk 0:06:57.7]} 18... Qe7 {[%clk 0:05:11.9]} 19. Be3 {[%clk 0:06:24.1]} 19...
Bxe3 {[%clk 0:04:54.8]} 20. Qxe3 {[%clk 0:06:24.1]} 20... e5 {[%clk 0:04:39.9]}
21. f5 {[%clk 0:06:13.2]} 21... Bf7 {[%clk 0:04:39.3]} 22. Rd2 {[%clk
0:06:06.5]} 22... Rfd8 {[%clk 0:04:03.9]} 23. Rad1 {[%clk 0:06:04.6]} 23... Kf8
{[%clk 0:04:01]} 24. Qc3 {[%clk 0:05:59.1]} 24... Bxb3 {[%clk 0:03:56.1]} 25.
cxb3 {[%clk 0:05:47.1]} 25... Nb6 {[%clk 0:02:05.5]} 26. Rxd8+ {[%clk
0:05:36.4]} 26... Rxd8 {[%clk 0:02:05.8]} 27. Rxd8+ {[%clk 0:05:36.2]} 27...
Qxd8 {[%clk 0:02:06]} 28. Qxa5 {[%clk 0:05:36.2]} 28... Qd4 {[%clk 0:01:56.5]}
29. Qc3 {[%clk 0:05:26.2]} 29... Nd7 {[%clk 0:01:48.8]} 30. b4 {[%clk
0:04:04.6]} 30... Nb6 {[%clk 0:01:31.8]} 31. a5 {[%clk 0:03:03.6]} 31... Nc4
{[%clk 0:01:27.7]} 32. Qxd4 {[%clk 0:03:01.9]} 32... exd4 {[%clk 0:01:27.9]} 33.
b3 {[%clk 0:02:57.5]} 33... Ne5 {[%clk 0:01:11.6]} 34. Be2 {[%clk 0:02:56.1]}
34... Ke7 {[%clk 0:01:00.8]} 35. Kf2 {[%clk 0:02:33.6]} 35... Kd6 {[%clk
0:01:01.2]} 36. Ke1 {[%clk 0:02:33.9]} 36... c5 {[%clk 0:00:17.1]} 37. b5 {[%clk
0:02:31]} 37... d3 {[%clk 0:00:15.7]} 38. Bf1 {[%clk 0:02:29.4]} 38... c4 {[%clk
0:00:15.8]} 39. bxc4 {[%clk 0:02:17.8]} 39... Nxc4 {[%clk 0:00:14.4]} 40. a6
{[%clk 0:02:16.2]} 40... bxa6 {[%clk 0:00:13]} 41. bxa6 {[%clk 0:02:16.7]} 41...
d2+ {[%clk 0:00:11.6]} 42. Kd1 {[%clk 0:02:16]} 42... Ne3+ {[%clk 0:00:12.5]}
43. Kxd2 {[%clk 0:02:15.1]} 43... Nxf1+ {[%clk 0:00:13.9]} 44. Ke1 {[%clk
0:02:07.6]} 44... Kc6 {[%clk 0:00:14.4]} 45. Kxf1 {[%clk 0:02:02.1]} 45... Kb6
{[%clk 0:00:16.3]} 46. Ke2 {[%clk 0:02:02.9]} 46... Kc6 {[%clk 0:00:18.2]} 47.
Kd3 {[%clk 0:02:02.7]} 47... Kb6 {[%clk 0:00:20.1]} 48. Kd4 {[%clk 0:02:03.2]}
48... Kxa6 {[%clk 0:00:22]} 49. Kd5 {[%clk 0:02:01.2]} 49... Kb6 {[%clk
0:00:23.9]} 50. Ke6 {[%clk 0:02:01.9]} 50... Kc6 {[%clk 0:00:25.8]} 51. Kf7
{[%clk 0:02:02.2]} 51... Kd6 {[%clk 0:00:17.9]} 52. Kxg7 {[%clk 0:02:02.8]}
52... Ke5 {[%clk 0:00:19.1]} 53. Kxh7 {[%clk 0:02:02.6]} 53... Kxe4 {[%clk
0:00:19.5]} 54. Kg6 {[%clk 0:02:03.2]} 1-0